bitfinex-derivatives/quotes_SOLF0:USTF0_20240824
["timestamp","ask_amount","ask_price","bid_price","bid_amount"]
[1724524457686,3.1329311,161.82,161.78,3.13401384]
[1724524458085,0.0445311,161.82,161.78,3.13401384]
[1724524458696,3.1329311,161.82,161.78,3.13401384]
[1724524459387,3.0886,161.81,161.78,0.04501384]
[1724524459600,0.0445311,161.82,161.78,0.04501384]
[1724524459981,0.0445311,161.82,161.78,3.13401384]
[1724524461387,3.1329311,161.82,161.78,3.13401384]
[1724524461789,0.0445311,161.82,161.78,0.04501384]
[1724524462493,3.1329311,161.82,161.78,0.04501384]
[1724524462692,0.0445311,161.82,161.78,3.13401384]
[1724524464294,0.0445311,161.82,161.78,0.04501384]
[1724524464497,3.1330311,161.82,161.78,0.04501384]
[1724524464799,0.0445311,161.82,161.78,0.04501384]
[1724524465493,23.7545311,161.82,161.78,0.04501384]
[1724524465797,23.71,161.8,161.78,0.04501384]
[1724524466597,3.0889,161.79,161.78,0.04501384]
[1724524467288,23.71,161.8,161.72,3.0902]
[1724524467289,3.0895,161.77,161.72,3.0902]
[1724524467498,26.7995,161.77,161.72,3.0902]
[1724524467991,3.0895,161.77,161.73,3.0901]
[1724524468191,3.12927056,161.77,161.73,3.0901]
[1724524471293,3.0896,161.76,161.72,3.0902]
[1724524471494,0.03977056,161.77,161.68,29.17157298]
[1724524471801,0.04610105,161.74,161.68,29.17157298]
[1724524472193,0.04610105,161.74,161.72,3.0902]
[1724524472697,0.04610105,161.74,161.73,3.0901]
[1724524474198,0.04610105,161.74,161.72,3.0902]
[1724524476298,0.04610105,161.74,161.68,29.17157298]
[1724524477596,0.04610105,161.74,161.72,3.0901]
[1724524480419,0.04610105,161.74,161.7,9.5]
[1724524481303,0.04610105,161.74,161.72,3.0902]
[1724524482405,0.04610105,161.74,161.71,3.0904]
[1724524484312,3.13600105,161.74,161.71,3.0904]
[1724524484610,9.54610105,161.74,161.68,2.4265]
[1724524485014,12.63600105,161.74,161.7,3.0905]
[1724524485810,3.0901,161.73,161.7,3.0905]
[1724524486816,3.0901,161.73,161.69,3.0908]
[1724524489812,3.0901,161.73,161.7,3.0906]
[1724524490717,3.13610105,161.74,161.7,3.0906]
[1724524491514,3.0901,161.73,161.7,3.0906]
[1724524492511,3.0904,161.72,161.68,3.091]
[1724524492709,3.13530283,161.72,161.68,3.091]
[1724524494312,3.0905,161.71,161.67,3.0912]
[1724524495021,12.5905,161.71,161.67,3.0912]
[1724524497218,12.5905,161.71,161.68,3.091]
[1724524498214,12.5905,161.71,161.67,3.0912]
[1724524498613,3.0907,161.7,161.67,3.0912]
[1724524499719,3.0907,161.7,161.66,3.0914]
[1724524499915,3.0909,161.69,161.64,67.27207093]
[1724524500116,0.04403348,161.68,161.64,67.27207093]
[1724524500518,0.04403348,161.68,161.65,3.0916]
[1724524501727,3.13513348,161.68,161.65,3.0916]
[1724524501922,12.63513348,161.68,161.65,3.0916]
[1724524502113,12.63513348,161.68,161.64,3.0917]
[1724524502311,12.5915,161.66,161.6,3.06865862]
[1724524502523,0.04120859,161.65,161.59,9.5]
[1724524502815,9.54120859,161.65,161.59,9.5]
[1724524503423,9.5,161.62,161.57,1.3217]
[1724524503620,9.5,161.62,161.55,9.5]
[1724524503621,0.03953861,161.61,161.55,9.5]
[1724524504827,3.0926,161.6,161.53,9.5]
[1724524505017,3.0926,161.6,161.51,2.4786]
[1724524505018,12.5926,161.6,161.54,1.23709286]
[1724524505222,0.04731808,161.59,161.54,1.23709286]
[1724524505424,0.04731808,161.59,161.53,9.5]
[1724524506222,0.04731808,161.59,161.54,10.73726716]
[1724524506419,0.04731808,161.59,161.55,1.23726716]
[1724524506819,0.04731808,161.59,161.56,3.0932]
[1724524507124,0.04731808,161.59,161.55,9.5]
[1724524507320,0.04731808,161.59,161.57,3.093]
[1724524508022,0.04731808,161.59,161.55,9.5]
[1724524508650,0.04731808,161.59,161.57,3.093]
[1724524508923,0.04731808,161.59,161.55,9.5]
[1724524509428,0.04731808,161.59,161.57,3.093]
[1724524510426,0.04731808,161.59,161.56,3.0933]
[1724524511629,0.04731808,161.59,161.57,3.093]
[1724524512028,0.04731808,161.59,161.58,3.093]
[1724524512823,0.04731808,161.59,161.57,3.0931]
[1724524514834,0.04731808,161.59,161.56,3.0933]
[1724524515626,3.14011808,161.59,161.55,3.0935]
[1724524517640,3.093,161.58,161.54,3.0937]
[1724524517933,12.593,161.58,161.54,3.0937]
[1724524518129,3.0933,161.57,161.52,3.094]
[1724524518334,3.0933,161.57,161.51,1.2345]
[1724524518531,0.04449557,161.56,161.51,1.2345]
[1724524518746,0.04449557,161.56,161.48,63.5307693]
[1724524518934,12.63789557,161.56,161.48,73.0307693]
[1724524519130,12.63789557,161.56,161.48,76.16603712]
[1724524519539,12.63789557,161.56,161.52,3.094]
[1724524521232,9.5,161.55,161.48,63.5307693]
[1724524522329,3.0939,161.53,161.5,3.0944]
[1724524522936,3.0937,161.54,161.5,3.0944]
[1724524523235,9.5,161.53,161.5,3.0944]
[1724524523437,9.5,161.51,161.5,3.0944]
[1724524524435,9.5,161.51,161.35,343.09062836]
[1724524524436,9.5,161.51,161.38,6.18941599]
[1724524524641,0.04407493,161.52,161.31,231.46476656]
[1724524524642,9.54740884,161.46,161.39,9.5]
[1724524524837,0.04208402,161.44,161.39,9.5]
[1724524525039,0.04208402,161.44,161.41,3.096]
[1724524525241,9.54208402,161.44,161.41,3.096]
[1724524525435,9.54208402,161.44,161.36,2.488]
[1724524525436,9.54208402,161.44,161.37,9.5]
[1724524526041,9.54208402,161.44,161.41,3.0961]
[1724524526446,0.04208402,161.44,161.41,3.0961]
[1724524527141,0.04208402,161.44,161.42,3.096]
[1724524529947,23.78,161.43,161.25,340.0]
[1724524530249,0.04145018,161.39,161.33,23.78]
[1724524530647,0.04145018,161.39,161.32,3.6908]
[1724524530844,0.04145018,161.39,161.32,27.4708]
[1724524531241,0.04145018,161.39,161.38,3.0968]
[1724524532752,6.182,161.65,161.38,3.0968]
[1724524532753,66.71069148,161.59,161.38,23.78]
[1724524533049,23.78,161.53,161.42,23.78]
[1724524533746,0.0475388,161.49,161.46,0.03968502]
[1724524533943,0.0475388,161.49,161.48,3.0947]
[1724524535667,0.0475388,161.49,161.46,23.81968502]
[1724524535668,23.78,161.56,161.52,3.094]
[1724524536150,23.78,161.56,161.53,3.0939]
[1724524536650,23.82627195,161.56,161.53,3.13640627]
[1724524537049,23.82627195,161.56,161.53,0.04250627]
[1724524538651,26.91977195,161.56,161.53,0.04250627]
[1724524541243,0.04627195,161.56,161.53,0.04250627]
[1724524542049,0.04627195,161.56,161.55,3.0935]
[1724524545156,45.0,161.59,161.58,3.093]
[1724524546461,45.0,161.59,161.57,3.13366006]
[1724524547162,45.0,161.59,161.58,3.093]
[1724524547563,68.82081371,161.6,161.58,3.093]
[1724524550070,45.04081371,161.6,161.59,3.0928]
[1724524552291,45.04081371,161.6,161.58,3.0929]
[1724524555771,45.04081371,161.6,161.59,3.0928]
[1724524559662,39.07171371,161.6,161.59,26.8728]
[1724524559863,2.5272,161.68,161.59,23.78]
[1724524560267,8.68414658,161.68,161.63,3.0919]
[1724524560462,5.6183,161.68,161.63,3.0919]
[1724524560662,0.04761583,161.67,161.64,0.04275243]
[1724524560868,3.13891583,161.67,161.64,0.04275243]
[1724524561575,3.0915,161.66,161.64,0.04275243]
[1724524561772,23.78,161.65,161.55,23.78]
[1724524562274,3.0919,161.64,161.55,23.78]
[1724524562975,0.0427857,161.61,161.58,0.04397353]
[1724524563469,0.0427857,161.61,161.6,3.0925]
[1724524567672,0.0427857,161.61,161.58,0.04397353]
[1724524568273,0.0427857,161.61,161.58,3.13687353]
[1724524570080,0.0427857,161.61,161.58,0.04397353]
[1724524570381,2.5439857,161.61,161.58,0.04397353]
[1724524570679,3.0926,161.6,161.58,0.04397353]
[1724524571576,3.0928,161.59,161.58,0.04397353]
[1724524573070,6.16347477,161.59,161.58,0.04397353]
[1724524576480,26.85067477,161.59,161.49,61.37848478]
[1724524577094,3.0932,161.57,161.54,3.0937]
[1724524577476,3.0932,161.57,161.54,3.14096798]
[1724524577477,3.13771706,161.57,161.54,3.14096798]
[1724524577677,3.13771706,161.57,161.54,0.04726798]
[1724524578887,3.0933,161.56,161.54,0.04726798]
[1724524580384,12.6035,161.55,161.51,3.0941]
[1724524580778,1.2791,161.54,161.51,3.0941]
[1724524581589,1.2791,161.54,161.48,9.51]
[1724524581789,9.51,161.57,161.49,9.51]
[1724524582089,0.03902621,161.54,161.51,0.0420807]
[1724524582290,0.03902621,161.54,161.53,3.0938]
[1724524586296,1.2493,161.61,161.57,3.0931]
[1724524586888,1.2493,161.61,161.59,3.0927]
[1724524587088,3.0921,161.63,161.59,3.0927]
[1724524587293,3.0921,161.63,161.59,0.04714921]
[1724524587294,0.04164793,161.63,161.59,0.04714921]
[1724524589789,0.04164793,161.63,161.6,3.0924]
[1724524593097,0.04164793,161.63,161.59,0.04714921]
[1724524593889,0.04164793,161.63,161.62,3.0922]
[1724524599600,24.9862,161.66,161.62,3.0922]
[1724524599601,3.08423573,161.8,161.62,23.77]
[1724524599793,23.77,161.74,161.64,23.77]
[1724524600101,23.77,161.74,161.67,3.0912]
[1724524600102,3.0906,161.71,161.67,3.0912]
[1724524600301,6.12205802,161.71,161.67,3.0912]
[1724524600604,6.16688369,161.71,161.67,3.13502374]
[1724524602305,29.93688369,161.71,161.67,0.04382374]
[1724524602805,23.77,161.68,161.67,0.04382374]
[1724524603008,23.77,161.68,161.63,3.0918]
[1724524604101,0.0442883,161.67,161.64,0.04201502]
[1724524604308,3.1355883,161.67,161.64,0.04201502]
[1724524606816,0.0442883,161.67,161.64,3.13371502]
[1724524607205,0.0442883,161.67,161.64,0.04201502]
[1724524607608,3.1354883,161.67,161.64,0.04201502]
[1724524610611,9.5,161.65,161.64,0.04201502]
[1724524611907,12.5916,161.65,161.64,0.04201502]
[1724524613317,3.092,161.63,161.58,3.00937606]
[1724524613514,9.5,161.62,161.59,3.21680297]
[1724524613812,9.5,161.62,161.6,1.23727484]
[1724524614012,9.5,161.62,161.55,9.5]
[1724524614013,9.5,161.62,161.59,3.0926]
[1724524614319,9.54150118,161.62,161.6,1.23728555]
[1724524614619,9.5,161.61,161.59,3.12951607]
[1724524620013,9.5,161.61,161.59,0.03691607]
[1724524620215,12.5924,161.61,161.59,0.03691607]
[1724524620925,15.7567647,161.61,161.59,0.03691607]
[1724524622619,6.2567647,161.61,161.59,0.03691607]
[1724524622921,9.5,161.6,161.59,0.03691607]
[1724524624324,6.2567647,161.61,161.59,0.03691607]
[1724524624527,9.5,161.6,161.59,0.03691607]
[1724524625424,12.5926,161.6,161.59,0.03691607]
[1724524626229,3.0928,161.59,161.55,3.0935]
[1724524626429,9.5,161.57,161.56,1.23755711]
[1724524627023,9.5,161.58,161.56,4.33085711]
[1724524627230,9.5,161.58,161.56,3.0933]
[1724524629739,9.5,161.58,161.53,3.01220938]
[1724524629740,9.5,161.58,161.55,3.0935]
[1724524629925,9.5,161.58,161.53,3.01220938]
[1724524630133,9.5,161.58,161.54,1.98015805]
[1724524630326,9.5,161.58,161.56,3.0933]
[1724524633338,9.5,161.58,161.57,3.0931]
[1724524633931,0.0408988,161.59,161.58,3.093]
[1724524635843,0.0408988,161.59,161.53,9.5]
[1724524636042,9.5408988,161.59,161.54,3.21771658]
[1724524636344,0.04727572,161.58,161.55,1.2375833]
[1724524636641,0.04727572,161.58,161.52,3.01293374]
[1724524636835,0.04727572,161.58,161.53,3.21773497]
[1724524637035,0.04727572,161.58,161.57,3.093]
[1724524643736,0.04727572,161.58,161.56,3.0933]
[1724524647038,0.04727572,161.58,161.57,3.0932]
[1724524648749,0.04727572,161.58,161.51,6.18775926]
[1724524648943,0.04727572,161.58,161.52,7.068542]
[1724524648944,9.5,161.56,161.52,7.068542]
[1724524649244,9.5,161.56,161.53,9.0486677]
[1724524649444,9.54135212,161.56,161.54,3.21770426]
[1724524649645,9.54135212,161.56,161.55,1.23757856]
[1724524649836,0.04135212,161.56,161.51,9.5]
[1724524650036,0.04135212,161.56,161.52,14.28577659]
[1724524650248,0.04135212,161.56,161.53,9.04800836]
[1724524650449,0.04135212,161.56,161.55,3.0934]
[1724524650646,0.04135212,161.56,161.55,6.31096545]
[1724524651967,0.04135212,161.56,161.55,3.0934]
[1724524652143,0.04135212,161.56,161.55,6.31089491]
[1724524652743,1.2624,161.67,161.55,12.71749491]
[1724524652946,12.5921,161.63,161.56,3.21749491]
[1724524653149,12.5921,161.63,161.57,3.21745693]
[1724524653346,12.5921,161.63,161.59,3.0926]
[1724524653746,12.63322288,161.63,161.59,3.13220406]
[1724524654349,9.5,161.61,161.59,3.13220406]
[1724524654654,9.5,161.61,161.59,0.03960406]
[1724524655049,9.5,161.61,161.59,3.13230406]
[1724524658049,9.5,161.61,161.59,0.03960406]
[1724524659355,9.5,161.61,161.59,3.13230406]
[1724524661648,9.5,161.62,161.59,3.13230406]
[1724524662253,9.5,161.62,161.6,3.0925]
[1724524664155,9.5,161.62,161.59,0.03960406]
[1724524664348,9.5,161.6,161.59,0.03960406]
[1724524665558,9.5,161.61,161.59,3.13230406]
[1724524671265,9.5,161.61,161.6,1.2374301]
[1724524671658,3.0922,161.62,161.6,1.2374301]
[1724524671893,0.04112288,161.63,161.59,0.03960406]
[1724524672063,9.5,161.61,161.59,0.03960406]
[1724524672265,0.04112288,161.63,161.6,1.23742049]
[1724524672461,0.04112288,161.63,161.59,0.03960406]
[1724524672664,9.54112288,161.63,161.6,1.23741666]
[1724524672960,0.04112288,161.63,161.61,1.23733452]
[1724524673167,9.54112288,161.63,161.59,0.03960406]
[1724524673359,9.54112288,161.63,161.6,6.30957192]
[1724524673558,9.54112288,161.63,161.61,1.23733535]
[1724524673766,9.54112288,161.63,161.6,3.0925]
[1724524673960,9.54112288,161.63,161.61,1.23731663]
[1724524674162,9.54112288,161.63,161.62,1.23731592]
[1724524675085,9.54112288,161.63,161.6,3.0925]
[1724524675262,0.04112288,161.63,161.6,3.0925]
[1724524675655,0.04112288,161.63,161.61,1.23730924]
[1724524675861,0.04112288,161.63,161.62,2.47462578]
[1724524678659,3.13312288,161.63,161.62,2.47462578]
[1724524680561,3.13312288,161.63,161.62,4.45430984]
[1724524681173,3.13312288,161.63,161.62,4.45430314]
[1724524681867,3.13312288,161.63,161.62,1.23730254]
[1724524682271,0.04112288,161.63,161.62,1.23730254]
[1724524682473,9.54112288,161.63,161.62,3.21692493]
[1724524682669,0.04112288,161.63,161.62,3.21692493]
[1724524683069,0.04112288,161.63,161.62,6.30912493]
[1724524683275,0.04112288,161.63,161.62,12.13321193]
[1724524683884,0.04112288,161.63,161.62,5.90740223]
[1724524684073,0.04112288,161.63,161.62,12.13286485]
[1724524684322,0.04112288,161.63,161.62,9.31766262]
[1724524684673,0.04112288,161.63,161.62,14.94751636]
[1724524685477,0.04112288,161.63,161.62,14.94707513]
[1724524687280,0.04112288,161.63,161.62,12.13215432]
[1724524687473,0.04112288,161.63,161.62,14.94603066]
[1724524688579,0.04112288,161.63,161.62,14.94587986]
[1724524690373,0.04112288,161.63,161.62,12.9665157]
[1724524692073,0.04112288,161.63,161.62,5.90713293]
[1724524693578,0.04112288,161.63,161.62,18.19034792]
[1724524693776,0.04112288,161.63,161.62,20.16946526]
[1724524693983,0.04112288,161.63,161.62,26.34701497]
[1724524694180,0.04112288,161.63,161.62,3.0922]
[1724524694480,0.04112288,161.63,161.62,9.31356604]
[1724524695479,0.04112288,161.63,161.62,17.3537667]
[1724524696583,0.04112288,161.63,161.62,12.12585304]
[1724524697718,0.04112288,161.63,161.62,8.90984172]
[1724524697980,0.04112288,161.63,161.62,12.12674549]
[1724524698482,0.04112288,161.63,161.62,12.12698348]
[1724524700273,0.04112288,161.63,161.62,6.02897866]
[1724524700582,0.04112288,161.63,161.59,6.21740924]
[1724524700583,9.54112288,161.63,161.59,0.03960406]
[1724524700775,9.54112288,161.63,161.6,6.30926756]
[1724524701009,9.54112288,161.63,161.6,3.0925]
[1724524701175,9.54112288,161.63,161.61,1.23722789]
[1724524701377,9.54112288,161.63,161.59,0.03960406]
[1724524701378,3.0922,161.62,161.59,3.13230406]
[1724524701579,9.5,161.61,161.6,1.23729653]
[1724524704411,9.5,161.61,161.59,0.03960406]
[1724524704581,3.0922,161.62,161.6,1.23731673]
[1724524704781,3.0922,161.62,161.59,3.13240406]
[1724524704987,3.0922,161.62,161.61,1.23730993]
[1724524708280,0.04112288,161.63,161.61,1.23731654]
[1724524708490,9.5,161.62,161.59,0.03960406]
[1724524708687,9.5,161.62,161.6,1.23732317]
[1724524708886,9.5,161.62,161.61,1.23732317]
[1724524710096,9.5,161.62,161.59,0.03960406]
[1724524710296,9.5,161.6,161.59,0.03960406]
[1724524711085,1.2573,161.61,161.59,0.03960406]
[1724524711303,9.5,161.6,161.59,0.03960406]
[1724524711789,9.5,161.6,161.56,3.0933]
[1724524712093,9.5,161.6,161.57,1.97991449]
[1724524712291,3.0929,161.59,161.55,11.33394808]
[1724524712596,3.0929,161.59,161.56,4.79682755]
[1724524712892,9.5,161.58,161.57,1.98000666]
[1724524713089,9.5,161.58,161.55,11.33394808]
[1724524713289,9.5,161.58,161.56,1.98002554]
[1724524713496,9.5,161.58,161.55,11.33394808]
[1724524713690,9.5,161.58,161.56,1.98001753]
[1724524713993,9.5,161.58,161.57,1.98001753]
[1724524714612,9.5,161.58,161.55,3.0934]
[1724524714792,9.5,161.58,161.56,1.98000834]
[1724524715095,9.5,161.58,161.57,1.98000834]
[1724524715598,3.13735283,161.59,161.57,1.98000834]
[1724524715797,12.63735283,161.59,161.55,3.0934]
[1724524715995,3.13735283,161.59,161.56,7.80281476]
[1724524716192,9.5,161.58,161.57,1.97998376]
[1724524718221,12.593,161.58,161.57,1.97998376]
[1724524718390,9.5,161.58,161.57,1.980003]
[1724524721993,9.5,161.58,161.57,3.21750474]
[1724524722194,9.5,161.58,161.56,3.0933]
[1724524722508,9.5,161.58,161.57,3.21750453]
[1724524723900,9.5,161.58,161.57,1.23750174]
[1724524725920,9.5,161.58,161.56,3.0933]
[1724524726095,9.5,161.58,161.57,1.2375453]
[1724524726596,12.593,161.58,161.57,1.2375453]
[1724524726797,9.5,161.55,161.54,3.00729704]
[1724524727002,9.5,161.55,161.52,64.86071566]
[1724524727196,9.54335742,161.55,161.53,1.98040634]
[1724524727402,9.54335742,161.55,161.52,64.86071566]
[1724524727598,9.54335742,161.55,161.53,1.98044208]
[1724524727801,9.54335742,161.55,161.52,67.95481566]
[1724524727994,9.54335742,161.55,161.53,1.98046193]
[1724524728189,9.54335742,161.55,161.52,67.95481566]
[1724524728491,9.54335742,161.55,161.53,1.98047131]
[1724524728694,9.54335742,161.55,161.52,67.95481566]
[1724524728997,9.54335742,161.55,161.53,1.98047131]
[1724524729194,9.54335742,161.55,161.52,67.95481566]
[1724524731500,9.54335742,161.55,161.53,1.98039307]
[1724524731695,9.54335742,161.55,161.52,67.95481566]
[1724524732300,9.5,161.54,161.52,67.95481566]
[1724524736732,9.5,161.54,161.46,24.74]
[1724524736902,0.04108063,161.52,161.47,5.23962061]
[1724524737208,0.04108063,161.52,161.5,3.0944]
[1724524737401,0.04108063,161.52,161.51,1.98053704]
[1724524737601,0.04108063,161.52,161.5,3.0944]
[1724524738407,9.5,161.51,161.49,3.0946]
[1724524738707,9.5,161.51,161.5,3.21843953]
[1724524739813,0.04108063,161.52,161.5,1.23786144]
[1724524740005,0.04108063,161.52,161.51,1.23786144]
[1724524740709,0.04108063,161.52,161.46,15.68917825]
[1724524740710,0.04108063,161.52,161.5,3.0945]
[1724524741107,0.04108063,161.52,161.51,1.23786266]
[1724524741308,0.04108063,161.52,161.51,4.33216266]
[1724524742209,0.04108063,161.52,161.51,13.83216266]
[1724524742414,0.04108063,161.52,161.51,9.13113453]
[1724524742720,10.6953,161.59,161.56,3.0933]
[1724524743019,13.7881,161.59,161.56,3.0933]
[1724524743705,13.7881,161.59,161.56,3.1361287]
[1724524743706,13.83521503,161.59,161.56,3.1361287]
[1724524745525,13.83521503,161.59,161.56,0.0428287]
[1724524748321,9.5,161.57,161.56,0.0428287]
[1724524752118,13.83521503,161.59,161.56,0.0428287]
[1724524752315,13.83521503,161.59,161.56,3.1361287]
[1724524752517,0.04711503,161.59,161.56,0.0428287]
[1724524754045,0.04711503,161.59,161.57,3.0932]
[1724524758228,0.04711503,161.59,161.56,0.0428287]
[1724524758627,0.04711503,161.59,161.57,1.23749846]
[1724524758829,0.04711503,161.59,161.56,0.0428287]
[1724524759131,0.04711503,161.59,161.57,1.23749846]
[1724524759333,0.04711503,161.59,161.57,3.0931]
[1724524762138,9.5,161.58,161.56,3.1361287]
[1724524763232,9.5,161.58,161.57,1.2375051]
[1724524764837,9.5,161.58,161.56,3.1361287]
[1724524765035,0.04711503,161.59,161.57,4.33071192]
[1724524765238,9.5,161.58,161.57,3.0932]
[1724524765538,9.5,161.58,161.57,4.33071861]
[1724524766438,9.5,161.58,161.57,1.23751861]
[1724524767633,9.5,161.58,161.57,3.21752407]
[1724524768433,9.5,161.58,161.56,3.1361287]
[1724524768633,9.5,161.58,161.57,3.21749626]
[1724524770133,9.5,161.58,161.57,6.03503017]
[1724524770638,9.5,161.58,161.57,2.81753391]
[1724524770939,9.5,161.58,161.57,6.03503054]
[1724524771336,9.5,161.58,161.57,1.2374987]
[1724524771561,9.5,161.58,161.56,0.0428287]
[1724524772046,9.5,161.58,161.57,1.23758579]
[1724524772339,9.5,161.58,161.57,6.4354461]
[1724524773333,9.5,161.58,161.57,2.4578461]
[1724524773536,9.5,161.58,161.52,3.00257573]
[1724524773740,9.5,161.55,161.53,4.79934018]
[1724524773936,9.5,161.55,161.52,6.09657573]
[1724524774135,0.04711503,161.59,161.53,4.79932318]
[1724524774340,9.5,161.58,161.52,3.00257573]
[1724524774538,9.5,161.58,161.54,5.07389021]
[1724524774539,0.04498546,161.57,161.54,5.07389021]
[1724524774846,0.04498546,161.57,161.55,4.79844192]
[1724524775045,0.04498546,161.57,161.56,1.98019021]
[1724524775245,0.04498546,161.57,161.56,4.79821778]
[1724524776241,9.54498546,161.57,161.56,1.98019021]
[1724524777147,9.54498546,161.57,161.56,4.79829389]
[1724524777345,9.54498546,161.57,161.56,1.98019021]
[1724524778046,9.54498546,161.57,161.53,3.0939]
[1724524778261,9.54498546,161.57,161.54,2.81857975]
[1724524778262,9.5,161.55,161.54,2.81857975]
[1724524778454,9.5,161.55,161.54,4.79887774]
[1724524778951,9.5,161.55,161.44,17.32789041]
[1724524778952,9.5,161.55,161.5,6.18843124]
[1724524779152,9.5,161.51,161.48,6.18843124]
[1724524779349,9.5,161.51,161.49,7.77373631]
[1724524779546,9.5,161.51,161.5,7.77373631]
[1724524780054,9.5,161.51,161.5,10.86823631]
[1724524781366,9.5,161.51,161.5,3.0945]
[1724524781550,9.5,161.51,161.5,10.857822]
[1724524781767,9.5,161.51,161.5,8.04298357]
[1724524781952,9.5,161.51,161.5,15.80626625]
[1724524782351,9.5,161.51,161.5,7.76328268]
[1724524782654,9.5,161.51,161.5,4.94846006]
[1724524783152,9.5,161.51,161.5,1.98056842]
[1724524784760,9.5,161.51,161.5,3.0945]
[1724524785053,9.5,161.51,161.5,5.07525154]
[1724524787152,9.5,161.52,161.5,5.07525154]
[1724524787350,9.5,161.52,161.5,3.0945]
[1724524795758,9.5,161.52,161.47,2.96915744]
[1724524795759,47.5,161.52,161.47,3.095]
[1724524795960,9.5,161.48,161.47,3.095]
[1724524796562,9.5,161.48,161.47,5.07607416]
[1724524796756,9.5,161.48,161.47,3.095]
[1724524797272,9.5,161.48,161.47,5.07605698]
[1724524797461,9.5,161.48,161.47,3.095]
[1724524799763,9.5,161.48,161.46,3.0952]
[1724524801468,0.04190126,161.49,161.44,2.97056273]
[1724524801664,0.04190126,161.49,161.45,1.98115612]
[1724524801862,9.5,161.46,161.41,2.97075426]
[1724524802058,9.5,161.44,161.42,4.79797957]
[1724524802259,9.5,161.44,161.43,7.76873383]
[1724524802467,9.5,161.44,161.43,8.04761038]
[1724524802768,9.54089226,161.45,161.43,4.7980245]
[1724524802970,9.54089226,161.45,161.44,1.98115612]
[1724524803365,9.54089226,161.45,161.39,11.9478]
[1724524803570,9.54089226,161.45,161.4,7.76884135]
[1724524803759,9.54089226,161.45,161.41,4.79803196]
[1724524803960,9.54089226,161.45,161.42,4.79803196]
[1724524804166,9.54089226,161.45,161.43,4.79803196]
[1724524804365,9.54089226,161.45,161.44,5.0767622]
[1724524804669,9.54089226,161.45,161.44,5.07677032]
[1724524805988,9.54089226,161.45,161.44,3.0956]
[1724524806366,9.54089226,161.45,161.44,5.07676391]
[1724524806871,9.54089226,161.45,161.44,3.0956]
[1724524807070,9.54089226,161.45,161.44,1.98116522]
[1724524807364,9.54089226,161.45,161.44,1.23838995]
[1724524807967,9.54089226,161.45,161.44,1.23837561]
[1724524808369,9.54089226,161.45,161.34,15.69000951]
[1724524808574,0.04024496,161.42,161.36,5.99581043]
[1724524808774,9.5,161.37,161.29,225.0]
[1724524808975,0.0457571,161.35,161.3,13.96995242]
[1724524809169,0.0457571,161.35,161.31,13.96995242]
[1724524809372,0.0457571,161.35,161.28,3.723]
[1724524809569,0.0457571,161.35,161.32,5.79032134]
[1724524809874,0.0457571,161.35,161.34,3.0976]
[1724524811569,9.5457571,161.35,161.29,3.0985]
[1724524811771,0.0457571,161.35,161.29,9.5]
[1724524812371,0.0457571,161.35,161.34,3.0976]
[1724524814574,10.7706,161.42,161.34,9.5]
[1724524814774,9.5,161.42,161.3,1.2954]
[1724524815075,9.5,161.42,161.36,9.5]
[1724524815674,0.0393389,161.41,161.37,0.04500204]
[1724524816079,0.0393389,161.41,161.37,9.54500204]
[1724524816877,0.0393389,161.41,161.39,3.0964]
[1724524818284,9.5,161.4,161.38,3.0966]
[1724524819076,9.5,161.4,161.39,3.0966]
[1724524821391,9.5,161.4,161.37,0.04500204]
[1724524823384,9.5,161.4,161.38,3.0967]
[1724524829291,9.5,161.4,161.37,0.04500204]
[1724524830288,9.5,161.4,161.38,3.0968]
[1724524831694,0.0393389,161.41,161.39,3.0965]
[1724524832688,9.5393389,161.41,161.39,3.0965]
[1724524834093,0.0393389,161.41,161.39,3.0965]
[1724524834296,0.0393389,161.41,161.4,3.0964]
[1724524834510,0.0393389,161.41,161.28,3.17025628]
[1724524834511,18.56,161.39,161.17,6.19522222]
[1724524834701,9.5,161.19,161.09,7.48962222]
[1724524834930,38.0,161.2,161.1,3.1021]
[1724524835225,38.0,161.2,161.09,1.2944]